Cogmind - Beta 13 @@@ ROGUE MODE // 2024.03.31 @ 15:41:12 Player: Zerindel Result: Self-destructed Performance ------------- Evolutions (1) 500 Regions Visited (3) 600 Robots Destroyed (3) 15 Value Destroyed (36) 36 Prototype IDs (2) 40 Alien Tech Used (0) 0 Bonus (0) 0 TOTAL SCORE: 1191 Bonus ------- None Cogmind --------- Core Integrity 322/400 Matter 253/300 Energy 123/125 System Corruption 2% Temperature Cool (4) Movement Core (150) Ox2 Location -9/Storage Parts ------- > --- POWER (1) -------- Light Ion Engine > --- PROPULSION (3) --- (None) > --- UTILITY (3) ------ Small Storage Unit > --- WEAPON (2) ------- (None) > --- INVENTORY (8) ---- Aluminum Leg Aluminum Leg Drone Bay (2/2) Drone Bay (2/2) Drone Bay (2/2) Drone Bay (2/2) Medium Laser Grenade Launcher Peak State ------------ > --- POWER ------------ Light Ion Engine > --- PROPULSION ------- Flight Unit Flight Unit Flight Unit > --- UTILITY ---------- Small Storage Unit Structural Scanner Seismic Detector > --- WEAPON ----------- Assault Rifle > --- INVENTORY -------- Aluminum Leg Aluminum Leg Drone Bay Drone Bay Drone Bay Drone Bay Medium Laser Grenade Launcher [Rating: 10] Favorites ----------- Power Light Ion Engine Engine Light Ion Engine Propulsion Flight Unit Leg Aluminum Leg Flight Unit Flight Unit Utility Small Storage Unit Device Structural Scanner Storage Small Storage Unit Weapon Assault Rifle Energy Gun Medium Laser Ballistic Gun Assault Rifle Launcher Grenade Launcher Build | -11 -10 -9 -9 ------- Run | Yrd Mat Mat Sto Slots Evolved 2 | . . 2 . Power . | . . . . Propulsion 1 | . . 1 . Utility 1 | . . 1 . Weapon . | . . . . Parts Attached 16 | 6 6 4 . Power 1 | 1 . . . Engine 1 | 1 . . . Core . | . . . . Reactor . | . . . . Propulsion 5 | 2 . 3 . Treads . | . . . . Leg 2 | 2 . . . Wheel . | . . . . Hover . | . . . . Flight 3 | . . 3 . Utility 5 | 1 3 1 . Device 2 | . 1 1 . Storage 3 | 1 2 . . Processor . | . . . . Hackware . | . . . . Protection . | . . . . Artifact . | . . . . Weapon 5 | 2 3 . . Energy Gun 2 | 1 1 . . Energy Cannon . | . . . . Ballistic Gun 2 | 1 1 . . Ballistic Cannon . | . . . . Launcher 1 | . 1 . . Special Weapon . | . . . . Impact Weapon . | . . . . Slashing Weapon . | . . . . Piercing Weapon . | . . . . Special Melee Weapon . | . . . . Unidentified Prototypes . | . . . . Parts Lost 3 | . . . 3 Power . | . . . . Propulsion 3 | . . . 3 Utility . | . . . . Weapon . | . . . . Highest Loss Streak 2 | . . . 2 To Critical Strikes . | . . . . Average Slot Usage (%) 84 | . 90 82 80 Engine 12 | . 14 11 11 Leg 12 | . 28 . . Flight 17 | . . 27 31 Device 13 | . 7 16 18 Storage 12 | . 14 11 11 Energy Gun 3 | . 8 5 . Ballistic Gun 10 | . 12 11 9 Launcher 2 | . 4 . . Naked Turns . | . . . . Heaviest Build 28 | 12 28 12 12 Greatest Support 20 | 20 20 12 12 Greatest Overweight (x) 1 | . 1 . 1 Average Overweight (x) . | . . . . Largest Inventory Capacity 15 | 8 15 8 8 Average Capacity 9 | 6 11 8 8 Most Carried 8 | 5 5 5 8 Average Carried 5 | . 3 4 7 Final Capacity 8 | 8 8 8 8 Final Carried 8 | . 5 4 8 Class Distribution -------------------- 100% | Mutant Dominant Class ---------------- Mutant | -10/Materials Mutant | -9/Materials Mutant | -9/Storage Resources | -11 -10 -9 -9 ----------- Run | Yrd Mat Mat Sto Matter Collected 316 | 258 35 . 23 Remotely . | . . . . Salvage Created 57 | . 57 . . Parts 5 | . 5 . . Haulers Intercepted . | . . . . Recyclers Shooed . | . . . . Parts Field Recycled . | . . . . Retrieved Matter . | . . . . Parts Self-Destructed . | . . . . Prevented . | . . . . Kills | -11 -10 -9 -9 ------- Run | Yrd Mat Mat Sto Combat Hostiles Destroyed 2 | . 2 . . Guns 2 | . 2 . . Classes Destroyed 2 | . 2 . . Watcher 1 | . 1 . . Swarmer 2 | . 2 . . Best Kill Streak 2 | . 2 . . Combat Bots Only 2 | . 2 . . Max Kills in Single Turn 1 | . 1 . . Gunslinging . | . . . . Exploded . | . . . . Melee . | . . . . Uniques/NPCs Destroyed . | . . . . Combat | -11 -10 -9 -9 -------- Run | Yrd Mat Mat Sto Hostile Shots Fired 35 | . 7 . 28 Missed 15 | . 1 . 14 Damage Taken 252 | . 48 . 204 Core 108 | . 30 . 78 Absorbed by Shields . | . . . . Core Remaining (%) 94 | 100 88 . . Volleys Fired 6 | . 3 . 3 Largest 2 | . 2 . 1 Hottest 70 | . 70 . 20 Shots Fired 9 | . 6 . 3 Gun 9 | . 6 . 3 Cannon . | . . . . Launcher . | . . . . Special . | . . . . Kinetic 6 | . 3 . 3 Thermal 3 | . 3 . . Explosive . | . . . . Electromagnetic . | . . . . Robot Hit Streak 3 | . 3 . 1 Robot Miss Streak 2 | . 1 . 2 Penetration Max . | . . . . Secondary Targets . | . . . . Shots Hit Robots 4 | . 3 . 1 Core Hits 3 | . 3 . . Critical Kills . | . . . . Critical Parts Destroyed . | . . . . Critical Strikes . | . . . . Melee Attacks . | . . . . Impact . | . . . . Slashing . | . . . . Piercing . | . . . . Sneak Attacks . | . . . . Combat Hostiles . | . . . . Follow-up Attacks . | . . . . Damage Inflicted 67 | . 52 . 15 Guns 67 | . 52 . 15 Cannons . | . . . . Explosions . | . . . . Melee . | . . . . Ramming . | . . . . Kinetic 42 | . 27 . 15 Thermal 25 | . 25 . . Explosive . | . . . . Electromagnetic . | . . . . Impact . | . . . . Slashing . | . . . . Piercing . | . . . . Highest Corruption . | . . . . Average Corruption . | . . . . Corruption Purged . | . . . . Corruption Blocked . | . . . . Overload Shots . | . . . . Overflow Damage . | . . . . Projectiles . | . . . . Explosions . | . . . . Melee . | . . . . Knockbacks . | . . . . Impact . | . . . . Kinetic . | . . . . Secondary . | . . . . Self-Inflicted Damage . | . . . . Shots . | . . . . Rammed . | . . . . Targets Rammed . | . . . . Kicked . | . . . . Crushed . | . . . . Highest Temperature 18 | . 18 . 12 Average Temperature 9 | . 9 . 12 Received Heat Transfer 96 | . . . 96 Siege Activations . | . . . . Robots Corrupted . | . . . . Combat Hostiles . | . . . . Parts Fried . | . . . . Impact Corruptions . | . . . . Robots Melted . | . . . . Combat Hostiles . | . . . . Parts Melted . | . . . . Heat Transferred 74 | . 74 . . Parts Sabotaged . | . . . . Parts Stolen . | . . . . Parts Stripped . | . . . . Power Chain Reactions . | . . . . Alert | -11 -10 -9 -9 ------- Run | Yrd Mat Mat Sto Peak Influence 312 | . 97 40 312 Initial 40 | . . 40 22 Average 79 | . 39 40 130 Maximum Alert Level 1 | . . . 1 Low Security (%) 84 | 100 100 100 68 Level 1 15 | . . . 31 Level 2 . | . . . . Level 3 . | . . . . Level 4 . | . . . . Level 5 . | . . . . High Security . | . . . . Max Security . | . . . . Squads Dispatched 1 | . . . 1 Investigation . | . . . . Extermination . | . . . . Reinforcement 1 | . . . 1 Assault . | . . . . Garrison . | . . . . Intercept . | . . . . Searches Triggered . | . . . . Construction Impeded . | . . . . Haulers Reinforced . | . . . . Active Scanning Responses . | . . . . Cargo Convoy Interrupts . | . . . . Stealth | -11 -10 -9 -9 --------- Run | Yrd Mat Mat Sto Distress Signals . | . . . . Communications Jammed . | . . . . Distress Signals . | . . . . Times Spotted 24 | . 5 . 19 Peak Tracking Total 10 | . 3 . 10 Tactical Retreats 4 | . 1 . 3 Traps | -11 -10 -9 -9 ------- Run | Yrd Mat Mat Sto Traps Triggered . | . . . . Indirectly . | . . . . Trap Hack Attempts . | . . . . Triggered . | . . . . Disarmed . | . . . . Reprogrammed . | . . . . Reused . | . . . . Traps Extracted . | . . . . Installed . | . . . . Triggered . | . . . . Machines | -11 -10 -9 -9 ---------- Run | Yrd Mat Mat Sto Machines Disabled . | . . . . Max in Single Turn . | . . . . Machines Repaired . | . . . . Machines Dismantled . | . . . . Machines Sabotaged . | . . . . Overloaded Fab Kills . | . . . . Hacking | -11 -10 -9 -9 --------- Run | Yrd Mat Mat Sto Machines Accessed 5 | . 3 . 2 Terminals 4 | . 2 . 2 Fabricators . | . . . . Repair Stations 1 | . 1 . . Recycling Units . | . . . . Scanalyzers . | . . . . Garrison Access . | . . . . Total Hacks 9 | . 6 . 3 Successful 5 | . 3 . 2 Failed 4 | . 3 . 1 Catastrophic . | . . . . Database Lockouts . | . . . . Manual 1 | . . . 1 Terminals 7 | . 4 . 3 Fabricators . | . . . . Repair Stations 2 | . 2 . . Recycling Units . | . . . . Scanalyzers . | . . . . Garrison Access . | . . . . Terminal Hacks 4 | . 2 . 2 Prototype ID Bank 1 | . 1 . . Open Door 1 | . . . 1 Alert Level 1 | . . . 1 Zone Layout 1 | . 1 . . Fabricator Hacks . | . . . . Repair Station Hacks 1 | . 1 . . Scan Component 1 | . 1 . . Recycling Unit Hacks . | . . . . Scanalyzer . | . . . . Garrison Access Hacks . | . . . . Unauthorized Hacks . | . . . . Terminals . | . . . . Fabricators . | . . . . Repair Stations . | . . . . Recycling Units . | . . . . Scanalyzers . | . . . . Garrison Access . | . . . . Data Cores Recovered . | . . . . Used . | . . . . Hacking Detections 4 | . 3 . 1 Full Trace Events . | . . . . Feedback Events . | . . . . Feedback Blocked . | . . . . Robot Schematics Acquired . | . . . . Robots Built . | . . . . Authchips . | . . . . Time . | . . . . Total Robot Build Rating . | . . . . Part Schematics Acquired . | . . . . Parts Built . | . . . . Authchips . | . . . . Time . | . . . . Total Part Build Rating . | . . . . Parts Repaired . | . . . . Time . | . . . . Parts Recycled . | . . . . Recycled Matter . | . . . . Retrieved Matter . | . . . . Retrieved Components . | . . . . Parts Scanalyzed . | . . . . Part Schematics Acquired . | . . . . Parts Damaged . | . . . . Bothacking | -11 -10 -9 -9 ------------ Run | Yrd Mat Mat Sto Used RIF Installer . | . . . . Robots Hacked . | . . . . Non-combat . | . . . . Combat . | . . . . Robot Hacks Applied . | . . . . Relay Couplers Released . | . . . . Fabnet Peak Effective % . | . . . . Robots Rewired . | . . . . Allies Hacked . | . . . . Hacks Repelled . | . . . . Allies | -11 -10 -9 -9 -------- Run | Yrd Mat Mat Sto Total Allies . | . . . . Largest Group . | . . . . Highest-Rated Group . | . . . . Highest-Rated Ally . | . . . . Total Orders . | . . . . Ally Attacks . | . . . . Total Damage . | . . . . Kills . | . . . . Allies Corrupted . | . . . . Allies Melted . | . . . . Intel | -11 -10 -9 -9 ------- Run | Yrd Mat Mat Sto Robot Analysis Total . | . . . . Derelict Logs Recovered . | . . . . Drone Launches . | . . . . Drone Recoveries . | . . . . Exploration | -11 -10 -9 -9 ------------- Run | Yrd Mat Mat Sto Turns Passed 517 | 45 211 13 248 Spaces Moved 820 | 36 128 21 635 Core 13 | 13 . . . Treads . | . . . . Legs 151 | 23 128 . . Wheels . | . . . . Hover . | . . . . Flight 656 | . . 21 635 Fastest Speed 34 | 50 120 34 34 Average Speed 54 | 94 143 34 34 Slowest Speed 190 | 120 190 34 117 Overloaded Moves . | . . . . Propulsion Burnouts . | . . . . Robots Hopped 13 | . . . 13 Cave-ins Triggered . | . . . . Exploration Rate (%) 28 | 4 33 4 71 Regions Visited 3 Branch Regions 1 Pre-discovered Areas . | . . . . Known Exits Taken . | . . . . Unknown Exits Taken 3 | 1 1 1 . Scrap Searched . | . . . . Spaces Dug . | . . . . Terrain Destroyed . | . . . . Melee . | . . . . Projectile . | . . . . AOE . | . . . . Terrain Rammed . | . . . . Walls Destroyed . | . . . . Machines Disabled . | . . . . Actions | -11 -10 -9 -9 --------- Run | Yrd Mat Mat Sto Total 870 | 47 150 25 648 Wait 18 | . 2 . 16 Move 791 | 35 127 20 609 Hop 13 | . . . 13 Pick Up 18 | 6 8 . 4 Fast Attach . | . . . . Attach 12 | 6 4 2 . Detach 3 | . 2 1 . Swap 4 | . 2 2 . Drop 5 | . 2 . 3 Fire 6 | . 3 . 3 Melee . | . . . . Ram . | . . . . Kick . | . . . . Crush . | . . . . Escape Stasis . | . . . . Rewire . | . . . . Trap . | . . . . Miscellaneous . | . . . . Route ------- -11/Scrapyard -10/Materials -9/Materials -9/Storage History --------- Turn | Location | Event 4 | -11/Scrapyard | Discovered new exit (range 16) 46 | -11/Scrapyard | Entered Materials 219 | -10/Materials | Discovered new exit (range 10) 257 | -10/Materials | Entered another Materials area 257 | -9/Materials | Evolved 2 slots: Propulsion x1, Utility x1 265 | -9/Materials | Discovered new exit (range 7) 270 | -9/Materials | Entered Storage 302 | -9/Storage | Build established: Mutant 518 | -9/Storage | Self-destructed Last Messages --------------- 00374_ K-01 Serf collects debris. 00394_ ALERT: Hostiles spotted, dispatching reinforcements to Terminal S009. 00418_ Connecting with Terminal... >>Alert(Check) Current Alert Level: Low Security 00429_ Connecting with Door Terminal... 00470_ Flight Unit destroyed. 00472_ Dropped Assault Rifle. 00472_ Dropped Seismic Detector. 00473_ Dropped Structural Scanner. 00478_ Critical hit (Burn: +37). 00493_ K-01 Serf collects debris. 00513_ U-05 Engineer destroyed. 00513_ Acquired 23 matter. 00514_ R-06 Scavenger collects Terrain Scanner. 00517_ R-06 Scavenger collects Wheel. 00518_ Flight Unit destroyed. 00518_ System corrupted by crushing effect (+1). Map ----- +----------------------------------------------------+ | | | | | | | | | | | | | | | | | | | | | | | | | ????????????????????????????????????????? | | ??????????????###???????????????????????? | | ?????????????#"""#??????????????????????? | | ?????????#####"Y"##?????????????????????? | | ???????### #????????????????????? | | ???????#"" #????????????????????? | | ???????#"Y """ """ #????????????????????? | | ????????"" """ """ #????????????????????? | | ?????????# """ """ #????????????????????? | | ????????## #????????????????????? | | ????????# = #????????????????????? | | ???####### #????????????????????? | | ???# #####Y##########???????????????? | | ???# @ u r ????????? | | ???# Y bg #??????????? | | ???# * r u #??????????? | | ???# |###############+##+##??????????? | | ???## ########????????????????????????? | | ???## # ????????????????????????? | | ???## # """ ""????????????????????????? | | ???## # """ ""????????????????????????? | | ???## + """ ""????????????????????????? | | ???## # #?????? #### ???? | | ???## # #??????########### ???? | | ???## # ] #?????## # #??? | | ???## # ##???#### ###??? | | ???## ##?" "#####????#### ##??? | | ???## ##?"R"#????????##"" ##???? | | ???##^ ^##??""#????????##"T ||[ ##???? | | ???## ##??#?#????????##"" |[ ##???? | | ???## ##???????????????## |[ ##???? | | ???## ##???#####???????## ##???? | | ???## ################### ####?? | | ???## #######T###############+#######?? | | ???## ####[[" # ##?? | | ???## ####[[ + ##?? | | ???## ####[[" # ##?? | | ???## ######### ##########+##+#######?? | +----------------------------------------------------+ Best States ------------- Heat Dissipation 28 Energy Generation 10 Energy Capacity 125 Matter Stores 298 Matter Capacity 300 Sight Range 16 Terrain Scan Density 10 Evasion (%) 63 Item Schematics ----------------- None Robot Schematics ------------------ None Fabricated ------------ Nothing Alien Tech Used ----------------- None Achievements -------------- None Challenges ------------ None Game ------ Seed TransportLinearPenetrator Manual? 0 Play Time 00:14:50 Cumulative 2.8 hours Start 2024.03.31 @ 15:29:11 End 2024.03.31 @ 15:41:12 Sessions 1 Manual Loads 0 Difficulty Rogue Special Mode None Game No. 6 Rogue 6 Adventurer 0 Explorer 0 Win Type - Total 0 Types 0/0/0/0/0/0/0/0/0 Lore% 4 Gallery% 7 Achievement% 7 Wizard Run 0 Options --------- Layout 1 ASCII 0 Keyboard 0 Movement Numpad Keybinds 0 Fullscreen 1 Font 24/Smallcaps Map View 50x35 Zoom Use 0% Tactical HUD 1 Map Filters NONE Filters NONE Steam 1 RUN: 6843477c-49ad-462e-a9f7-524ecc40c4fb